{"text_format":"3","workbook":"xlsx","n_sheets":16,"sheets":["Соц.ком. к 7г ч4","Реч.разв.к 7г ч3","Позн.разв. к 7г ч2","Соц.ком.к 7г ч2","Физ.разв. к 7г ч3","Худ.эст.к 7г ч3","Реч.разв.к 7г ч2","Реч.разв.к 7г ч1","Соц.ком. к 7г ч3","Физ.разв. к 7г ч2","Физ.разв. к 7г ч1","Соц.ком.к 7г ч1","Позн.разв. к 7г ч1","Позн.разв. к 7г ч3","Худ.эст.к 7г ч1","Худ.эст.к 7г ч2"],"read":"whole","date_system":"1900"}

{"sheet":"Соц.ком. к 7г ч4","index":0,"n_rows":43,"n_cols":10,"rows_kept":43,"merged":[[0,0,0,1],[0,4,0,5],[0,6,0,9],[1,0,1,3],[2,0,2,3],[3,0,3,1],[4,0,4,1],[5,0,9,0],[5,1,9,1],[5,4,5,8],[5,9,9,9],[6,4,6,8],[7,4,7,8],[8,4,9,4],[8,5,9,5],[8,6,9,6],[8,7,9,7],[8,8,9,8],[40,1,40,8],[41,1,41,9],[42,1,42,9]]}
["Финальная диагностика",{"$nulls":3},"ГРУППА ПОДГОТОВИТЕЛЬНОГО К ШКОЛЕ ВОЗРАСТА (6-7 лет)",null,"Период проведения - окончание посещения группы подготовительного к школе возраста"]
["Стартовая диагностика"]
["*- не диагностируется в данном возрасте"]
["Сформированность показателя",{"$nulls":3},"«2» показатель сформирован","«1» показатель в стадии формирования","«0» показатель не сформирован"]
["Средний уровень",{"$nulls":3},"1,8 - 2,0 норма-высокий","1,0 - 1,7 норма - средний","0,0 - 0,9 ниже нормы"]
["№","Ф.И. ребенка",null,null,"ОБРАЗОВАТЕЛЬНАЯ ОБЛАСТЬ «СОЦИАЛЬНО-КОММУНИКАТИВНОЕ  РАЗВИТИЕ»",{"$nulls":4},"СРЕДНИЙ ПОКАЗАТЕЛЬ ПО РЕБЕНКУ"]
[{"$nulls":4},"Показатели возможных достижений (возрастные характеристики) к 7 годам"]
[{"$nulls":4},"Область формирования основ безопасного поведения"]
[{"$nulls":4},"Ребенок имеет представление о правила безопасного поведения в ситуациях, создающих угрозу жизни и здоровью (погас свет, остался один, потерялся, получил травму)","Ребенок имеет представление о правила безопасного поведения дома, на улице, в природе, в местах большого скопления людей, в магазине, на вокзале, в общественных метах, на праздниках и др.","Ребенок имеет представление о правилах безопасного использования цифровых ресурсов (мобильного телефона, планшета)","Ребенок имеет представление об элементарных правилах оказания первой помощи при первых признаках недомогания, травмах, ушибах","Ребенок проявляет самостоятельность при выполнении правил безопасного поведения"]
[]
[1,{"$nulls":8},{"$f":"AVERAGE(E11:I11)","v":{"$error":"#DIV/0!"}}]
[2,{"$nulls":8},{"$f":"AVERAGE(E12:I12)","v":{"$error":"#DIV/0!"}}]
[3,{"$nulls":8},{"$f":"AVERAGE(E13:I13)","v":{"$error":"#DIV/0!"}}]
[4,{"$nulls":8},{"$f":"AVERAGE(E14:I14)","v":{"$error":"#DIV/0!"}}]
[5,{"$nulls":8},{"$f":"AVERAGE(E15:I15)","v":{"$error":"#DIV/0!"}}]
[6,{"$nulls":8},{"$f":"AVERAGE(E16:I16)","v":{"$error":"#DIV/0!"}}]
[7,{"$nulls":8},{"$f":"AVERAGE(E17:I17)","v":{"$error":"#DIV/0!"}}]
[8,{"$nulls":8},{"$f":"AVERAGE(E18:I18)","v":{"$error":"#DIV/0!"}}]
[9,{"$nulls":8},{"$f":"AVERAGE(E19:I19)","v":{"$error":"#DIV/0!"}}]
[10,{"$nulls":8},{"$f":"AVERAGE(E20:I20)","v":{"$error":"#DIV/0!"}}]
[11,{"$nulls":8},{"$f":"AVERAGE(E21:I21)","v":{"$error":"#DIV/0!"}}]
[12,{"$nulls":8},{"$f":"AVERAGE(E22:I22)","v":{"$error":"#DIV/0!"}}]
[13,{"$nulls":8},{"$f":"AVERAGE(E23:I23)","v":{"$error":"#DIV/0!"}}]
[14,{"$nulls":8},{"$f":"AVERAGE(E24:I24)","v":{"$error":"#DIV/0!"}}]
[15,{"$nulls":8},{"$f":"AVERAGE(E25:I25)","v":{"$error":"#DIV/0!"}}]
[16,{"$nulls":8},{"$f":"AVERAGE(E26:I26)","v":{"$error":"#DIV/0!"}}]
[17,{"$nulls":8},{"$f":"AVERAGE(E27:I27)","v":{"$error":"#DIV/0!"}}]
[18,{"$nulls":8},{"$f":"AVERAGE(E28:I28)","v":{"$error":"#DIV/0!"}}]
[19,{"$nulls":8},{"$f":"AVERAGE(E29:I29)","v":{"$error":"#DIV/0!"}}]
[20,{"$nulls":8},{"$f":"AVERAGE(E30:I30)","v":{"$error":"#DIV/0!"}}]
[21,{"$nulls":8},{"$f":"AVERAGE(E31:I31)","v":{"$error":"#DIV/0!"}}]
[22,{"$nulls":8},{"$f":"AVERAGE(E32:I32)","v":{"$error":"#DIV/0!"}}]
[23,{"$nulls":8},{"$f":"AVERAGE(E33:I33)","v":{"$error":"#DIV/0!"}}]
[24,{"$nulls":8},{"$f":"AVERAGE(E34:I34)","v":{"$error":"#DIV/0!"}}]
[25,{"$nulls":8},{"$f":"AVERAGE(E35:I35)","v":{"$error":"#DIV/0!"}}]
[26,{"$nulls":8},{"$f":"AVERAGE(E36:I36)","v":{"$error":"#DIV/0!"}}]
[27,{"$nulls":8},{"$f":"AVERAGE(E37:I37)","v":{"$error":"#DIV/0!"}}]
[28,{"$nulls":8},{"$f":"AVERAGE(E38:I38)","v":{"$error":"#DIV/0!"}}]
[29,{"$nulls":8},{"$f":"AVERAGE(E39:I39)","v":{"$error":"#DIV/0!"}}]
[30,{"$nulls":8},{"$f":"AVERAGE(E40:I40)","v":{"$error":"#DIV/0!"}}]
[null,"СРЕДНИЙ ПОКАЗАТЕЛЬ ПО ГРУППЕ",{"$nulls":7},{"$f":"AVERAGE(J11:J40)","v":{"$error":"#DIV/0!"}}]
[null,"Ф.И.О, должность специалиста(ов)____________________________________________________________________________________________________________________________________________________________________________________________________________________________________"]
[null,"© Автор-составитель Кулекина И.А., СПБ, 2023"]

{"sheet":"Реч.разв.к 7г ч3","index":1,"n_rows":43,"n_cols":11,"rows_kept":43,"merged":[[0,0,0,1],[0,4,0,5],[0,6,0,9],[1,0,1,3],[2,0,2,3],[3,0,3,1],[4,0,4,1],[5,0,9,0],[5,1,9,1],[5,4,5,9],[5,10,9,10],[6,4,6,9],[7,4,7,9],[8,4,9,4],[8,5,9,5],[8,6,9,6],[8,7,9,7],[8,8,9,8],[8,9,9,9],[40,1,40,9],[41,1,41,10],[42,1,42,10]]}
["Финальная диагностика",{"$nulls":3},"ГРУППА ПОДГОТОВИТЕЛЬНОГО К ШКОЛЕ ВОЗРАСТА (6-7 лет)",null,"Период проведения - окончание посещения группы подготовительного к школе возраста"]
["Стартовая диагностика"]
["*- не диагностируется в данном возрасте"]
["Сформированность показателя",{"$nulls":3},"«2» показатель сформирован","«1» показатель в стадии формирования","«0» показатель не сформирован"]
["Средний уровень",{"$nulls":3},"1,8 - 2,0 норма-высокий","1,0 - 1,7 норма - средний","0,0 - 0,9 ниже нормы"]
["№","Ф.И. ребенка",null,null,"ОБРАЗОВАТЕЛЬНАЯ ОБЛАСТЬ «РЕЧЕВОЕ  РАЗВИТИЕ»",{"$nulls":5},"СРЕДНИЙ ПОКАЗАТЕЛЬ ПО РЕБЕНКУ"]
[{"$nulls":4},"Показатели возможных достижений (возрастные характеристики) к 7 годам"]
[{"$nulls":4},"Подготовка к обучению грамоте"]
[{"$nulls":4},"Ребенок производит звуковой анализ четырехзвуковых и пятизвуковых слов","Ребенок может интонационно выделить звуки в слове, определить их последовательность, дать им характеристику, составить схему слова, выделить ударный гласный звук в слове","Ребенок может определить количество и последовательность слов в предложении","Ребенок может составить предложение с заданным количеством слов","Ребенок знает названия всех букв","Ребенок читает слоги"]
[]
[1,{"$nulls":9},{"$f":"AVERAGE(E11:J11)","v":{"$error":"#DIV/0!"}}]
[2,{"$nulls":9},{"$error":"#DIV/0!"}]
[3,{"$nulls":9},{"$error":"#DIV/0!"}]
[4,{"$nulls":9},{"$error":"#DIV/0!"}]
[5,{"$nulls":9},{"$error":"#DIV/0!"}]
[6,{"$nulls":9},{"$error":"#DIV/0!"}]
[7,{"$nulls":9},{"$error":"#DIV/0!"}]
[8,{"$nulls":9},{"$error":"#DIV/0!"}]
[9,{"$nulls":9},{"$error":"#DIV/0!"}]
[10,{"$nulls":9},{"$error":"#DIV/0!"}]
[11,{"$nulls":9},{"$error":"#DIV/0!"}]
[12,{"$nulls":9},{"$error":"#DIV/0!"}]
[13,{"$nulls":9},{"$error":"#DIV/0!"}]
[14,{"$nulls":9},{"$error":"#DIV/0!"}]
[15,{"$nulls":9},{"$error":"#DIV/0!"}]
[16,{"$nulls":9},{"$error":"#DIV/0!"}]
[17,{"$nulls":9},{"$error":"#DIV/0!"}]
[18,{"$nulls":9},{"$error":"#DIV/0!"}]
[19,{"$nulls":9},{"$error":"#DIV/0!"}]
[20,{"$nulls":9},{"$error":"#DIV/0!"}]
[21,{"$nulls":9},{"$error":"#DIV/0!"}]
[22,{"$nulls":9},{"$error":"#DIV/0!"}]
[23,{"$nulls":9},{"$error":"#DIV/0!"}]
[24,{"$nulls":9},{"$error":"#DIV/0!"}]
[25,{"$nulls":9},{"$error":"#DIV/0!"}]
[26,{"$nulls":9},{"$error":"#DIV/0!"}]
[27,{"$nulls":9},{"$error":"#DIV/0!"}]
[28,{"$nulls":9},{"$error":"#DIV/0!"}]
[29,{"$nulls":9},{"$error":"#DIV/0!"}]
[30,{"$nulls":9},{"$error":"#DIV/0!"}]
[null,"СРЕДНИЙ ПОКАЗАТЕЛЬ ПО ГРУППЕ",{"$nulls":8},{"$f":"AVERAGE(K11:K40)","v":{"$error":"#DIV/0!"}}]
[null,"Ф.И.О, должность специалиста(ов)____________________________________________________________________________________________________________________________________________________________________________________________________________________________________"]
[null,"© Автор-составитель Кулекина И.А., СПБ, 2023"]

{"sheet":"Позн.разв. к 7г ч2","index":2,"n_rows":44,"n_cols":14,"rows_kept":44,"merged":[[0,1,0,2],[0,5,0,6],[0,7,0,10],[1,1,1,4],[2,1,2,4],[3,1,3,2],[3,6,3,7],[3,8,3,9],[4,1,4,2],[4,6,4,7],[4,8,4,9],[5,0,10,0],[5,1,10,1],[5,4,5,12],[5,13,10,13],[6,4,6,12],[7,4,7,12],[8,4,8,6],[8,7,8,8],[8,9,8,10],[9,4,10,4],[9,5,10,5],[9,6,10,6],[9,7,10,7],[9,8,10,8],[9,9,10,9],[9,10,10,10],[9,11,10,11],[9,12,10,12],[41,1,41,12],[43,1,43,13]]}
[null,"Финальная диагностика",{"$nulls":3},"ГРУППА ПОДГОТОВИТЕЛЬНОГО К ШКОЛЕ ВОЗРАСТА (6-7 лет)",null,"Период проведения - окончание посещения группы подготовительного к школе возраста"]
[null,"Стартовая диагностика"]
[null,"*- не диагностируется в данном возрасте"]
[null,"Сформированность показателя",{"$nulls":3},"«2» показатель сформирован","«1» показатель в стадии формирования",null,"«0» показатель не сформирован"]
[null,"Средний уровень",{"$nulls":3},"1,8 - 2,0 норма-высокий","1,0 - 1,7 норма - средний",null,"0,0 - 0,9 ниже нормы"]
["№","Ф.И. ребенка",null,null,"ОБРАЗОВАТЕЛЬНАЯ ОБЛАСТЬ «ПОЗНАВАТЕЛЬНОЕ  РАЗВИТИЕ»",{"$nulls":8},"СРЕДНИЙ ПОКАЗАТЕЛЬ ПО РЕБЕНКУ"]
[{"$nulls":4},"Показатели возможных достижений (возрастные характеристики) к 7 годам"]
[{"$nulls":4},"Математические представления"]
[{"$nulls":4},"Количество и счет",null,null,"Ориентировка во времени",null,"Ориентировка в пространстве",null,"Пространственно-количественные связи и отношения","Сравнение"]
[{"$nulls":4},"Ребенок умеет считать в пределах 10 в прямом и обратном порядке","Ребенок знает состав чисел из двух меньших в пределах первого десятка","Ребенок решает простые арифметические задачи на сложение и вычитание","Ребенок имеет представление о календаре, как системе измерения времени","Ребенок умеет определять время по часам с точностью до четверти часа","Ребенок ориентируется на местности, по схеме, по плану","Ребенок знает способы ориентировки в двухмерном пространстве","Ребенок умеет измерять протяженность, массу и объем с помощью условной мерки; понимает взаимообратные отношения между мерой и результатом измерения","Ребенок сравнивает предметы по 4-6 основаниям с выделением сходства, отличия"]
[]
[1,{"$nulls":12},{"$f":"AVERAGE(E12:M12)","v":{"$error":"#DIV/0!"}}]
[2,{"$nulls":12},{"$error":"#DIV/0!"}]
[3,{"$nulls":12},{"$error":"#DIV/0!"}]
[4,{"$nulls":12},{"$error":"#DIV/0!"}]
[5,{"$nulls":12},{"$error":"#DIV/0!"}]
[6,{"$nulls":12},{"$error":"#DIV/0!"}]
[7,{"$nulls":12},{"$error":"#DIV/0!"}]
[8,{"$nulls":12},{"$error":"#DIV/0!"}]
[9,{"$nulls":12},{"$error":"#DIV/0!"}]
[10,{"$nulls":12},{"$error":"#DIV/0!"}]
[11,{"$nulls":12},{"$error":"#DIV/0!"}]
[12,{"$nulls":12},{"$error":"#DIV/0!"}]
[13,{"$nulls":12},{"$error":"#DIV/0!"}]
[14,{"$nulls":12},{"$error":"#DIV/0!"}]
[15,{"$nulls":12},{"$error":"#DIV/0!"}]
[16,{"$nulls":12},{"$error":"#DIV/0!"}]
[17,{"$nulls":12},{"$error":"#DIV/0!"}]
[18,{"$nulls":12},{"$error":"#DIV/0!"}]
[19,{"$nulls":12},{"$error":"#DIV/0!"}]
[20,{"$nulls":12},{"$error":"#DIV/0!"}]
[21,{"$nulls":12},{"$error":"#DIV/0!"}]
[22,{"$nulls":12},{"$error":"#DIV/0!"}]
[23,{"$nulls":12},{"$error":"#DIV/0!"}]
[24,{"$nulls":12},{"$error":"#DIV/0!"}]
[25,{"$nulls":12},{"$error":"#DIV/0!"}]
[26,{"$nulls":12},{"$error":"#DIV/0!"}]
[27,{"$nulls":12},{"$error":"#DIV/0!"}]
[28,{"$nulls":12},{"$error":"#DIV/0!"}]
[29,{"$nulls":12},{"$error":"#DIV/0!"}]
[30,{"$nulls":12},{"$error":"#DIV/0!"}]
[null,"СРЕДНИЙ ПОКАЗАТЕЛЬ ПО ГРУППЕ",{"$nulls":11},{"$f":"AVERAGE(N12:N41)","v":{"$error":"#DIV/0!"}}]
[null,"Ф.И.О, должность специалиста(ов)____________________________________________________________________________________________________________________________________________________________________________________________________________________________________"]
[null,"© Автор-составитель Кулекина И.А., СПБ, 2023"]

{"sheet":"Соц.ком.к 7г ч2","index":3,"n_rows":43,"n_cols":12,"rows_kept":43,"merged":[[0,0,0,1],[0,4,0,5],[0,6,0,7],[1,0,1,3],[2,0,2,3],[3,0,3,1],[3,4,3,5],[4,0,4,1],[4,4,4,5],[5,0,9,0],[5,1,9,1],[5,4,5,10],[5,11,9,11],[6,4,6,10],[7,4,7,10],[8,4,8,5],[8,6,8,7],[8,8,9,8],[8,9,9,9],[8,10,9,10],[40,1,40,10],[41,1,41,11],[42,1,42,11]]}
["Финальная диагностика",{"$nulls":3},"ГРУППА ПОДГОТОВИТЕЛЬНОГО К ШКОЛЕ ВОЗРАСТА (6-7 лет)",null,"Период проведения - окончание посещения группы подготовительного к школе возраста"]
["Стартовая диагностика"]
["*- не диагностируется в данном возрасте"]
["Сформированность показателя",{"$nulls":3},"«2» показатель сформирован",null,"«1» показатель в стадии формирования","«0» показатель не сформирован"]
["Средний уровень",{"$nulls":3},"1,8 - 2,0 норма-высокий",null,"1,0 - 1,7 норма - средний","0,0 - 0,9 ниже нормы"]
["№","Ф.И. ребенка",null,null,"ОБРАЗОВАТЕЛЬНАЯ ОБЛАСТЬ «СОЦИАЛЬНО-КОММУНИКАТИВНОЕ  РАЗВИТИЕ»",{"$nulls":6},"СРЕДНИЙ ПОКАЗАТЕЛЬ ПО РЕБЕНКУ"]
[{"$nulls":4},"Показатели возможных достижений (возрастные характеристики) к 7 годам"]
[{"$nulls":4},"Сфера социальных отношений"]
[{"$nulls":4},"Семья",null,"Игровое поведение",null,"Ребенок имеет представление об изменениях позиции человека с возрастом","Ребенок имеет представление о школе, школьниках, учителях; стремится к школьному обучению, к познанию, освоению чтения, письма; демонстрирует формированные предпосылки к учебной деятельности и элементы готовности к школьному обучению","Ребенок имеет представление о нравственных качествах людей, их проявлении в поступках и взаимоотношениях"]
[{"$nulls":4},"Ребенок имеет представление о необходимости укрепления связи между поколениями, взаимной поддержке детей и взрослых","Ребенок имеет представление о семье, семейных и родственных отношениях (взаимные чувства, правила общения в семье, значимые и памятные события, досуг семьи, семейный бюджет)","Ребенок умеет сотрудничать со сверстниками (побуждает к обсуждению планов, советуется, поддерживает интерес к мнению, инициирует ситуации взаимопомощи, подчеркивает ценность каждого ребенка и его вклад в общее дело, выбирает партнеров по интересам, помогает устанавливать темп совместных действий)","Ребенок владеет разными способами и видами игры, различает условную и реальную ситуации, предлагает и объясняет замысел игры, комбинирует сюжеты на основе реальных, вымышленных ситуаций, выполняет несколько ролей в одной игре, подбирает разные средства для создания игровых образов, согласовывает свои интересы с интересами партнёров по игре"]
[1,{"$nulls":10},{"$f":"AVERAGE(E11:K11)","v":{"$error":"#DIV/0!"}}]
[2,{"$nulls":10},{"$error":"#DIV/0!"}]
[3,{"$nulls":10},{"$error":"#DIV/0!"}]
[4,{"$nulls":10},{"$error":"#DIV/0!"}]
[5,{"$nulls":10},{"$error":"#DIV/0!"}]
[6,{"$nulls":10},{"$error":"#DIV/0!"}]
[7,{"$nulls":10},{"$error":"#DIV/0!"}]
[8,{"$nulls":10},{"$error":"#DIV/0!"}]
[9,{"$nulls":10},{"$error":"#DIV/0!"}]
[10,{"$nulls":10},{"$error":"#DIV/0!"}]
[11,{"$nulls":10},{"$error":"#DIV/0!"}]
[12,{"$nulls":10},{"$error":"#DIV/0!"}]
[13,{"$nulls":10},{"$error":"#DIV/0!"}]
[14,{"$nulls":10},{"$error":"#DIV/0!"}]
[15,{"$nulls":10},{"$error":"#DIV/0!"}]
[16,{"$nulls":10},{"$error":"#DIV/0!"}]
[17,{"$nulls":10},{"$error":"#DIV/0!"}]
[18,{"$nulls":10},{"$error":"#DIV/0!"}]
[19,{"$nulls":10},{"$error":"#DIV/0!"}]
[20,{"$nulls":10},{"$error":"#DIV/0!"}]
[21,{"$nulls":10},{"$error":"#DIV/0!"}]
[22,{"$nulls":10},{"$error":"#DIV/0!"}]
[23,{"$nulls":10},{"$error":"#DIV/0!"}]
[24,{"$nulls":10},{"$error":"#DIV/0!"}]
[25,{"$nulls":10},{"$error":"#DIV/0!"}]
[26,{"$nulls":10},{"$error":"#DIV/0!"}]
[27,{"$nulls":10},{"$error":"#DIV/0!"}]
[28,{"$nulls":10},{"$error":"#DIV/0!"}]
[29,{"$nulls":10},{"$error":"#DIV/0!"}]
[30,{"$nulls":10},{"$error":"#DIV/0!"}]
[null,"СРЕДНИЙ ПОКАЗАТЕЛЬ ПО ГРУППЕ",{"$nulls":9},{"$f":"AVERAGE(L11:L40)","v":{"$error":"#DIV/0!"}}]
[null,"Ф.И.О, должность специалиста(ов)____________________________________________________________________________________________________________________________________________________________________________________________________________________________________"]
[null,"© Автор-составитель Кулекина И.А., СПБ, 2023"]

{"sheet":"Физ.разв. к 7г ч3","index":4,"n_rows":45,"n_cols":16,"rows_kept":45,"merged":[[0,0,0,1],[0,4,0,6],[0,7,0,13],[1,0,1,3],[2,0,2,3],[3,0,3,1],[3,4,3,5],[3,6,3,7],[3,8,3,9],[4,0,4,1],[4,4,4,5],[4,6,4,7],[4,8,4,9],[5,0,11,0],[5,1,11,1],[5,4,5,14],[5,15,11,15],[6,4,6,14],[7,4,7,7],[7,8,7,10],[7,11,7,14],[8,4,9,4],[8,5,9,5],[8,6,9,6],[8,7,9,7],[8,8,11,8],[8,9,11,9],[8,10,11,10],[8,11,8,14],[9,11,11,11],[9,12,11,12],[9,13,11,13],[9,14,11,14],[10,4,11,4],[10,5,11,5],[10,6,11,6],[10,7,11,7],[42,1,42,14],[43,1,43,15],[44,1,44,15]]}
["Финальная диагностика",{"$nulls":3},"ГРУППА ПОДГОТОВИТЕЛЬНОГО К ШКОЛЕ ВОЗРАСТА (6-7 лет)",null,null,"Период проведения - окончание посещения группы подготовительного к школе возраста"]
["Стартовая диагностика"]
["*- не диагностируется в данном возрасте"]
["Сформированность показателя",{"$nulls":3},"«2» показатель сформирован",null,"«1» показатель в стадии формирования",null,"«0» показатель не сформирован"]
["Средний уровень",{"$nulls":3},"1,8 - 2,0 норма-высокий",null,"1,0 - 1,7 норма - средний",null,"0,0 - 0,9 ниже нормы"]
["№","Ф.И. ребенка",null,null,"ОБРАЗОВАТЕЛЬНАЯ ОБЛАСТЬ «ФИЗИЧЕСКОЕ  РАЗВИТИЕ»",{"$nulls":10},"СРЕДНИЙ ПОКАЗАТЕЛЬ ПО РЕБЕНКУ"]
[{"$nulls":4},"Показатели возможных достижений (возрастные характеристики) к 7 годам"]
[{"$nulls":4},"КГН",{"$nulls":3},"ЗОЖ",null,null,"Спортивные упражнения"]
[{"$nulls":4},"Навыки соблюдения чистоты тела (правила личной гигиены)","Навыки культуры еды (прием пищи) ","Навыки поддержания порядка (правила поведения в быту) ","Навыки ухода за собой (одевание, раздевание) ","Ребенок соблюдает элементарные правила здорового образа жизни и личной гигиены, следит за своей осанкой, может оценить свое самочувствие","Ребенок регулярно выполняет физические упражнения","Ребенок имеет начальные представления о том, что такое здоровье, понимает, как поддержать, укрепить и сохранить его","Ребенок умеет кататься"]
[{"$nulls":11},"на санках","на лыжах","на двухколесном велосипеде","на самокате"]
[{"$nulls":4},"Ребенок владеет навыками личной гигиены","Ребенок владеет навыками культуры еды","Ребенок владеет навыками поддержания порядка","Ребенок владеет навыками ухода за собой"]
[]
[1,{"$nulls":14},{"$f":"AVERAGE(E13:O13)","v":{"$error":"#DIV/0!"}}]
[2,{"$nulls":14},{"$error":"#DIV/0!"}]
[3,{"$nulls":14},{"$error":"#DIV/0!"}]
[4,{"$nulls":14},{"$error":"#DIV/0!"}]
[5,{"$nulls":14},{"$error":"#DIV/0!"}]
[6,{"$nulls":14},{"$error":"#DIV/0!"}]
[7,{"$nulls":14},{"$error":"#DIV/0!"}]
[8,{"$nulls":14},{"$error":"#DIV/0!"}]
[9,{"$nulls":14},{"$error":"#DIV/0!"}]
[10,{"$nulls":14},{"$error":"#DIV/0!"}]
[11,{"$nulls":14},{"$error":"#DIV/0!"}]
[12,{"$nulls":14},{"$error":"#DIV/0!"}]
[13,{"$nulls":14},{"$error":"#DIV/0!"}]
[14,{"$nulls":14},{"$error":"#DIV/0!"}]
[15,{"$nulls":14},{"$error":"#DIV/0!"}]
[16,{"$nulls":14},{"$error":"#DIV/0!"}]
[17,{"$nulls":14},{"$error":"#DIV/0!"}]
[18,{"$nulls":14},{"$error":"#DIV/0!"}]
[19,{"$nulls":14},{"$error":"#DIV/0!"}]
[20,{"$nulls":14},{"$error":"#DIV/0!"}]
[21,{"$nulls":14},{"$error":"#DIV/0!"}]
[22,{"$nulls":14},{"$error":"#DIV/0!"}]
[23,{"$nulls":14},{"$error":"#DIV/0!"}]
[24,{"$nulls":14},{"$error":"#DIV/0!"}]
[25,{"$nulls":14},{"$error":"#DIV/0!"}]
[26,{"$nulls":14},{"$error":"#DIV/0!"}]
[27,{"$nulls":14},{"$error":"#DIV/0!"}]
[28,{"$nulls":14},{"$error":"#DIV/0!"}]
[29,{"$nulls":14},{"$error":"#DIV/0!"}]
[30,{"$nulls":14},{"$error":"#DIV/0!"}]
[null,"СРЕДНИЙ ПОКАЗАТЕЛЬ ПО ГРУППЕ",{"$nulls":13},{"$f":"AVERAGE(P13:P42)+P23:P43E7P16:P43P22:P43P21:P43P20:P43P19:P43P18:P43P1P16:P43","v":{"$error":"#DIV/0!"}}]
[null,"Ф.И.О, должность специалиста(ов)____________________________________________________________________________________________________________________________________________________________________________________________________________________________________"]
[null,"© Автор-составитель Кулекина И.А., СПБ, 2023"]

{"sheet":"Худ.эст.к 7г ч3","index":5,"n_rows":44,"n_cols":13,"rows_kept":44,"merged":[[0,0,0,1],[0,4,0,6],[0,7,0,10],[1,0,1,3],[1,7,1,11],[2,0,2,3],[3,0,3,1],[3,4,3,5],[3,6,3,8],[3,9,3,10],[4,0,4,1],[4,4,4,5],[4,6,4,8],[4,9,4,10],[5,0,10,0],[5,1,10,1],[5,4,5,11],[5,12,10,12],[6,4,6,11],[7,4,8,9],[7,10,8,11],[9,4,10,4],[9,5,10,5],[9,6,10,6],[9,7,10,7],[9,8,10,8],[9,9,10,9],[9,10,10,10],[9,11,10,11],[41,1,41,11],[43,1,43,12]]}
["Финальная диагностика",{"$nulls":3},"ГРУППА ПОДГОТОВИТЕЛЬНОГО К ШКОЛЕ ВОЗРАСТА (6-7 лет)",null,null,"Период проведения - окончание посещения группы подготовительного к школе возраста"]
["Стартовая диагностика"]
["*- не диагностируется в данном возрасте"]
["Сформированность показателя",{"$nulls":3},"«2» показатель сформирован",null,"«1» показатель в стадии формирования",null,null,"«0» показатель не сформирован"]
["Средний уровень",{"$nulls":3},"1,8 - 2,0 норма-высокий",null,"1,0 - 1,7 норма - средний",null,null,"0,0 - 0,9 ниже нормы"]
[null,"Ф.И. ребенка",null,null,"ОБРАЗОВАТЕЛЬНАЯ ОБЛАСТЬ «ХУДОЖЕСТВЕННО-ЭСТЕТИЧЕСКОЕ РАЗВИТИЕ»",{"$nulls":7},"СРЕДНИЙ ПОКАЗАТЕЛЬ ПО РЕБЕНКУ"]
[{"$nulls":4},"Показатели возможных достижений (возрастные характеристики) к 7 годам"]
[{"$nulls":4},"Приобщение к искусству",{"$nulls":5},"Конструктивная деятельность"]
[]
[{"$nulls":4},"Ребенок умеет выделять, называть, группировать произведения по видам искусства: литература, музыка, изобразительное искусство, архитектура, театр, цирк","Ребенок имеет представление о видах изобразительного искусства: графика, декоративно-прикладное искусство, живопись, скульптура, архитектура, фотоискусство","Ребенок имеет представление о жанрах изобразительного искусства: натюрморт, пейзаж, портрет","Ребенок имеет представление о народном искусстве, фольклоре, музыке и художественных промыслах","Ребенок имеет представление о творческих профессиях: художник, композитор, музыкант, актер, артист балета","Ребенок имеет представление о культурно-досуговых местах: театр, музей, библиотека, выставка, кинотеатр, цирк и др.","Ребенок может провести анализ постройки (выделить основные части и характерные детали конструкций)","Ребенок может выполнить постройку по инструкции"]
[]
[1,{"$nulls":11},{"$f":"AVERAGE(E12:L12)","v":{"$error":"#DIV/0!"}}]
[2,{"$nulls":11},{"$error":"#DIV/0!"}]
[3,{"$nulls":11},{"$error":"#DIV/0!"}]
[4,{"$nulls":11},{"$error":"#DIV/0!"}]
[5,{"$nulls":11},{"$error":"#DIV/0!"}]
[6,{"$nulls":11},{"$error":"#DIV/0!"}]
[7,{"$nulls":11},{"$error":"#DIV/0!"}]
[8,{"$nulls":11},{"$error":"#DIV/0!"}]
[9,{"$nulls":11},{"$error":"#DIV/0!"}]
[10,{"$nulls":11},{"$error":"#DIV/0!"}]
[11,{"$nulls":11},{"$error":"#DIV/0!"}]
[12,{"$nulls":11},{"$error":"#DIV/0!"}]
[13,{"$nulls":11},{"$error":"#DIV/0!"}]
[14,{"$nulls":11},{"$error":"#DIV/0!"}]
[15,{"$nulls":11},{"$error":"#DIV/0!"}]
[16,{"$nulls":11},{"$error":"#DIV/0!"}]
[17,{"$nulls":11},{"$error":"#DIV/0!"}]
[18,{"$nulls":11},{"$error":"#DIV/0!"}]
[19,{"$nulls":11},{"$error":"#DIV/0!"}]
[20,{"$nulls":11},{"$error":"#DIV/0!"}]
[21,{"$nulls":11},{"$error":"#DIV/0!"}]
[22,{"$nulls":11},{"$error":"#DIV/0!"}]
[23,{"$nulls":11},{"$error":"#DIV/0!"}]
[24,{"$nulls":11},{"$error":"#DIV/0!"}]
[25,{"$nulls":11},{"$error":"#DIV/0!"}]
[26,{"$nulls":11},{"$error":"#DIV/0!"}]
[27,{"$nulls":11},{"$error":"#DIV/0!"}]
[28,{"$nulls":11},{"$error":"#DIV/0!"}]
[29,{"$nulls":11},{"$error":"#DIV/0!"}]
[30,{"$nulls":11},{"$error":"#DIV/0!"}]
[null,"СРЕДНИЙ ПОКАЗАТЕЛЬ ПО ГРУППЕ",{"$nulls":10},{"$f":"AVERAGE(M12:M41)","v":{"$error":"#DIV/0!"}}]
[null,"Ф.И.О, должность специалиста(ов)____________________________________________________________________________________________________________________________________________________________________________________________________________________________________"]
[null,"© Автор-составитель Кулекина И.А., СПБ, 2023"]

{"sheet":"Реч.разв.к 7г ч2","index":6,"n_rows":43,"n_cols":14,"rows_kept":43,"merged":[[0,0,0,1],[0,4,0,6],[0,7,0,9],[1,0,1,3],[2,0,2,3],[3,0,3,1],[3,5,3,6],[3,7,3,8],[4,0,4,1],[4,5,4,6],[4,7,4,8],[5,0,9,0],[5,1,9,1],[5,4,5,12],[5,13,9,13],[6,4,6,12],[7,5,7,9],[7,10,7,12],[8,4,9,4],[8,5,9,5],[8,6,9,6],[8,7,9,7],[8,8,9,8],[8,9,9,9],[8,10,9,10],[8,11,9,11],[8,12,9,12],[40,1,40,12],[41,1,41,13],[42,1,42,13]]}
["Финальная диагностика",{"$nulls":3},"ГРУППА ПОДГОТОВИТЕЛЬНОГО К ШКОЛЕ ВОЗРАСТА (6-7 лет)",null,null,"Период проведения - окончание посещения группы подготовительного к школе возраста"]
["Стартовая диагностика"]
["*- не диагностируется в данном возрасте"]
["Сформированность показателя",{"$nulls":3},"«2» показатель сформирован","«1» показатель в стадии формирования",null,"«0» показатель не сформирован"]
["Средний уровень",{"$nulls":3},"1,8 - 2,0 норма-высокий","1,0 - 1,7 норма - средний",null,"0,0 - 0,9 ниже нормы"]
["№","Ф.И. ребенка",null,null,"ОБРАЗОВАТЕЛЬНАЯ ОБЛАСТЬ «РЕЧЕВОЕ  РАЗВИТИЕ»",{"$nulls":8},"СРЕДНИЙ ПОКАЗАТЕЛЬ ПО РЕБЕНКУ"]
[{"$nulls":4},"Показатели возможных достижений (возрастные характеристики) к 7 годам"]
[{"$nulls":4},"Звуковая культура речи","Связная речь",{"$nulls":4},"ЧХЛ"]
[{"$nulls":4},"Ребенок правильно произносит все звуки","Ребенок может пересказать литературное произведение по ролям, близко к тексту, от лица литературного героя","Ребенок может составить описательный рассказ, соблюдая структуру описания","Ребенок может составить повествовательный рассказ по картине, из личного опыта, из коллективного опыта, по набору игрушек, соблюдая структуру повествования","Ребенок может составить рассказ -контаминацию (сочетание описания и повествования, описания и рассуждения)","Ребенок использует в процессе общения объяснительную речь, речь-доказательство, речевое планирование","Ребенок знает и осмысленно воспринимает литературные произведения различных жанров, имеет предпочтения","Ребенок определяет характеры персонажей, мотивы их поведения, оценивает поступки литературных героев","Ребенок проявляет интерес к книгам познавательного характера"]
[]
[1,{"$nulls":12},{"$f":"AVERAGE(E11:M11)","v":{"$error":"#DIV/0!"}}]
[2,{"$nulls":12},{"$error":"#DIV/0!"}]
[3,{"$nulls":12},{"$error":"#DIV/0!"}]
[4,{"$nulls":12},{"$error":"#DIV/0!"}]
[5,{"$nulls":12},{"$error":"#DIV/0!"}]
[6,{"$nulls":12},{"$error":"#DIV/0!"}]
[7,{"$nulls":12},{"$error":"#DIV/0!"}]
[8,{"$nulls":12},{"$error":"#DIV/0!"}]
[9,{"$nulls":12},{"$error":"#DIV/0!"}]
[10,{"$nulls":12},{"$error":"#DIV/0!"}]
[11,{"$nulls":12},{"$error":"#DIV/0!"}]
[12,{"$nulls":12},{"$error":"#DIV/0!"}]
[13,{"$nulls":12},{"$error":"#DIV/0!"}]
[14,{"$nulls":12},{"$error":"#DIV/0!"}]
[15,{"$nulls":12},{"$error":"#DIV/0!"}]
[16,{"$nulls":12},{"$error":"#DIV/0!"}]
[17,{"$nulls":12},{"$error":"#DIV/0!"}]
[18,{"$nulls":12},{"$error":"#DIV/0!"}]
[19,{"$nulls":12},{"$error":"#DIV/0!"}]
[20,{"$nulls":12},{"$error":"#DIV/0!"}]
[21,{"$nulls":12},{"$error":"#DIV/0!"}]
[22,{"$nulls":12},{"$error":"#DIV/0!"}]
[23,{"$nulls":12},{"$error":"#DIV/0!"}]
[24,{"$nulls":12},{"$error":"#DIV/0!"}]
[25,{"$nulls":12},{"$error":"#DIV/0!"}]
[26,{"$nulls":12},{"$error":"#DIV/0!"}]
[27,{"$nulls":12},{"$error":"#DIV/0!"}]
[28,{"$nulls":12},{"$error":"#DIV/0!"}]
[29,{"$nulls":12},{"$error":"#DIV/0!"}]
[30,{"$nulls":12},{"$error":"#DIV/0!"}]
[null,"СРЕДНИЙ ПОКАЗАТЕЛЬ ПО ГРУППЕ",{"$nulls":11},{"$f":"AVERAGE(N11:N40)","v":{"$error":"#DIV/0!"}}]
[null,"Ф.И.О, должность специалиста(ов)____________________________________________________________________________________________________________________________________________________________________________________________________________________________________"]
[null,"© Автор-составитель Кулекина И.А., СПБ, 2023"]

{"sheet":"Реч.разв.к 7г ч1","index":7,"n_rows":43,"n_cols":13,"rows_kept":43,"merged":[[0,0,0,1],[0,4,0,6],[0,7,0,10],[1,0,1,3],[1,4,1,7],[2,0,2,3],[3,0,3,1],[3,4,3,5],[3,7,3,8],[3,9,3,10],[4,0,4,1],[4,4,4,5],[4,7,4,8],[4,9,4,10],[5,0,9,0],[5,1,9,1],[5,4,5,11],[5,12,9,12],[6,4,6,11],[7,5,7,7],[7,8,7,11],[8,4,9,4],[8,5,9,5],[8,6,9,6],[8,7,9,7],[8,8,9,8],[8,9,9,9],[8,10,9,10],[8,11,9,11],[40,1,40,11],[41,1,41,12],[42,1,42,12]]}
["Финальная диагностика",{"$nulls":3},"ГРУППА ПОДГОТОВИТЕЛЬНОГО К ШКОЛЕ ВОЗРАСТА (6-7 лет)",null,null,"Период проведения - окончание посещения группы подготовительного к школе возраста"]
["Стартовая диагностика"]
["*- не диагностируется в данном возрасте"]
["Сформированность показателя",{"$nulls":3},"«2» показатель сформирован",null,null,"«1» показатель в стадии формирования",null,"«0» показатель не сформирован"]
["Средний уровень",{"$nulls":3},"1,8 - 2,0 норма-высокий",null,null,"1,0 - 1,7 норма - средний",null,"0,0 - 0,9 ниже нормы"]
["№","Ф.И. ребенка",null,null,"ОБРАЗОВАТЕЛЬНАЯ ОБЛАСТЬ «РЕЧЕВОЕ  РАЗВИТИЕ»",{"$nulls":7},"СРЕДНИЙ ПОКАЗАТЕЛЬ ПО РЕБЕНКУ"]
[{"$nulls":4},"Показатели возможных достижений (возрастные характеристики) к 7 годам"]
[{"$nulls":4},"Общее речевое развитие","Формирование словаря",null,null,"Грамматический строй"]
[{"$nulls":4},"Ребенок владеет речью как средством коммуникации, ведет диалог, владеет коммуникативно-речевыми умениями","Ребенок подбирает точные слова для выражения мысли","Ребенок выполняет операцию классификации – деления освоенных понятий на группы на основе выявленных признаков","Ребенок использует в речи средства языковой выразительности: антонимы, синонимы, многозначные слова, метафоры, олицетворение","Ребенок образует сложные слова посредством слияния основ","Ребенок согласует в речи существительные с числительными, существительные с прилагательными","Ребенок образует по образцу существительные с суффиксами, глаголы с приставками","Ребенок образует в речи сравнительную и превосходную степени имен прилагательных"]
[]
[1,{"$nulls":11},{"$f":"AVERAGE(E11:L11)","v":{"$error":"#DIV/0!"}}]
[2,{"$nulls":11},{"$error":"#DIV/0!"}]
[3,{"$nulls":11},{"$error":"#DIV/0!"}]
[4,{"$nulls":11},{"$error":"#DIV/0!"}]
[5,{"$nulls":11},{"$error":"#DIV/0!"}]
[6,{"$nulls":11},{"$error":"#DIV/0!"}]
[7,{"$nulls":11},{"$error":"#DIV/0!"}]
[8,{"$nulls":11},{"$error":"#DIV/0!"}]
[9,{"$nulls":11},{"$error":"#DIV/0!"}]
[10,{"$nulls":11},{"$error":"#DIV/0!"}]
[11,{"$nulls":11},{"$error":"#DIV/0!"}]
[12,{"$nulls":11},{"$error":"#DIV/0!"}]
[13,{"$nulls":11},{"$error":"#DIV/0!"}]
[14,{"$nulls":11},{"$error":"#DIV/0!"}]
[15,{"$nulls":11},{"$error":"#DIV/0!"}]
[16,{"$nulls":11},{"$error":"#DIV/0!"}]
[17,{"$nulls":11},{"$error":"#DIV/0!"}]
[18,{"$nulls":11},{"$error":"#DIV/0!"}]
[19,{"$nulls":11},{"$error":"#DIV/0!"}]
[20,{"$nulls":11},{"$error":"#DIV/0!"}]
[21,{"$nulls":11},{"$error":"#DIV/0!"}]
[22,{"$nulls":11},{"$error":"#DIV/0!"}]
[23,{"$nulls":11},{"$error":"#DIV/0!"}]
[24,{"$nulls":11},{"$error":"#DIV/0!"}]
[25,{"$nulls":11},{"$error":"#DIV/0!"}]
[26,{"$nulls":11},{"$error":"#DIV/0!"}]
[27,{"$nulls":11},{"$error":"#DIV/0!"}]
[28,{"$nulls":11},{"$error":"#DIV/0!"}]
[29,{"$nulls":11},{"$error":"#DIV/0!"}]
[30,{"$nulls":11},{"$error":"#DIV/0!"}]
[null,"СРЕДНИЙ ПОКАЗАТЕЛЬ ПО ГРУППЕ",{"$nulls":10},{"$f":"AVERAGE(E41:L41)","v":{"$error":"#DIV/0!"}}]
[null,"Ф.И.О, должность специалиста(ов)____________________________________________________________________________________________________________________________________________________________________________________________________________________________________"]
[null,"© Автор-составитель Кулекина И.А., СПБ, 2023"]

{"sheet":"Соц.ком. к 7г ч3","index":8,"n_rows":43,"n_cols":13,"rows_kept":43,"merged":[[0,0,0,1],[0,4,0,7],[0,8,0,10],[1,0,1,3],[1,4,1,8],[2,0,2,3],[3,0,3,1],[3,4,3,5],[3,6,3,8],[4,0,4,1],[4,4,4,5],[4,6,4,8],[5,0,9,0],[5,1,9,1],[5,4,5,11],[5,12,9,12],[6,4,6,11],[7,4,7,8],[7,9,7,11],[8,4,9,4],[8,5,9,5],[8,6,9,6],[8,7,9,7],[8,8,9,8],[8,9,9,9],[8,10,9,10],[8,11,9,11],[40,1,40,11],[41,1,41,12],[42,1,42,12]]}
["Финальная диагностика",{"$nulls":3},"ГРУППА ПОДГОТОВИТЕЛЬНОГО К ШКОЛЕ ВОЗРАСТА (6-7 лет)",{"$nulls":3},"Период проведения - окончание посещения группы подготовительного к школе возраста"]
["Стартовая диагностика"]
["*- не диагностируется в данном возрасте"]
["Сформированность показателя",{"$nulls":3},"«2» показатель сформирован",null,"«1» показатель в стадии формирования",null,null,"«0» показатель не сформирован"]
["Средний уровень",{"$nulls":3},"1,8 - 2,0 норма-высокий",null,"1,0 - 1,7 норма - средний",null,null,"0,0 - 0,9 ниже нормы"]
["№","Ф.И. ребенка",null,null,"ОБРАЗОВАТЕЛЬНАЯ ОБЛАСТЬ «СОЦИАЛЬНО-КОММУНИКАТИВНОЕ  РАЗВИТИЕ»",{"$nulls":7},"СРЕДНИЙ ПОКАЗАТЕЛЬ ПО РЕБЕНКУ"]
[{"$nulls":4},"Показатели возможных достижений (возрастные характеристики) к 7 годам"]
[{"$nulls":4},"Область формирования основ гражданственности и патриотизма",{"$nulls":4},"Сфера трудового воспитания"]
[{"$nulls":4},"Ребенок имеет представление о признаках и характеристиках государства (территория государства и его границы, столица), атрибутах государственной власти, президенте, столице","Ребенок имеет представление о порядке использования государственной символики","Ребенок имеет представление о волонтерстве","Ребенок имеет представление о государственных праздниках, исторических событиях","Ребенок имеет представление о жизни людей в России, о многообразии стран и народов мира","Ребенок имеет представление об обмене ценностями в процессе производства и потребления товаров и услуг, о денежных отношениях, о реальной стоимости отдельных продуктов питания, игрушек, детских книг","Ребенок имеет представление о об основах финансовой грамоты, основах бережного потребления","Ребенок проявляет инициативность и самостоятельность в процессе самообслуживания, при выполнении трудовых поручений"]
[]
[1,{"$nulls":11},{"$f":"AVERAGE(E11:L11)","v":{"$error":"#DIV/0!"}}]
[2,{"$nulls":11},{"$f":"AVERAGE(E12:L12)","v":{"$error":"#DIV/0!"}}]
[3,{"$nulls":11},{"$f":"AVERAGE(E13:L13)","v":{"$error":"#DIV/0!"}}]
[4,{"$nulls":11},{"$f":"AVERAGE(E14:L14)","v":{"$error":"#DIV/0!"}}]
[5,{"$nulls":11},{"$f":"AVERAGE(E15:L15)","v":{"$error":"#DIV/0!"}}]
[6,{"$nulls":11},{"$f":"AVERAGE(E16:L16)","v":{"$error":"#DIV/0!"}}]
[7,{"$nulls":11},{"$f":"AVERAGE(E17:L17)","v":{"$error":"#DIV/0!"}}]
[8,{"$nulls":11},{"$f":"AVERAGE(E18:L18)","v":{"$error":"#DIV/0!"}}]
[9,{"$nulls":11},{"$f":"AVERAGE(E19:L19)","v":{"$error":"#DIV/0!"}}]
[10,{"$nulls":11},{"$f":"AVERAGE(E20:L20)","v":{"$error":"#DIV/0!"}}]
[11,{"$nulls":11},{"$f":"AVERAGE(E21:L21)","v":{"$error":"#DIV/0!"}}]
[12,{"$nulls":11},{"$f":"AVERAGE(E22:L22)","v":{"$error":"#DIV/0!"}}]
[13,{"$nulls":11},{"$f":"AVERAGE(E23:L23)","v":{"$error":"#DIV/0!"}}]
[14,{"$nulls":11},{"$f":"AVERAGE(E24:L24)","v":{"$error":"#DIV/0!"}}]
[15,{"$nulls":11},{"$f":"AVERAGE(E25:L25)","v":{"$error":"#DIV/0!"}}]
[16,{"$nulls":11},{"$f":"AVERAGE(E26:L26)","v":{"$error":"#DIV/0!"}}]
[17,{"$nulls":11},{"$f":"AVERAGE(E27:L27)","v":{"$error":"#DIV/0!"}}]
[18,{"$nulls":11},{"$f":"AVERAGE(E28:L28)","v":{"$error":"#DIV/0!"}}]
[19,{"$nulls":11},{"$f":"AVERAGE(E29:L29)","v":{"$error":"#DIV/0!"}}]
[20,{"$nulls":11},{"$f":"AVERAGE(E30:L30)","v":{"$error":"#DIV/0!"}}]
[21,{"$nulls":11},{"$f":"AVERAGE(E31:L31)","v":{"$error":"#DIV/0!"}}]
[22,{"$nulls":11},{"$f":"AVERAGE(E32:L32)","v":{"$error":"#DIV/0!"}}]
[23,{"$nulls":11},{"$f":"AVERAGE(E33:L33)","v":{"$error":"#DIV/0!"}}]
[24,{"$nulls":11},{"$f":"AVERAGE(E34:L34)","v":{"$error":"#DIV/0!"}}]
[25,{"$nulls":11},{"$f":"AVERAGE(E35:L35)","v":{"$error":"#DIV/0!"}}]
[26,{"$nulls":11},{"$f":"AVERAGE(E36:L36)","v":{"$error":"#DIV/0!"}}]
[27,{"$nulls":11},{"$f":"AVERAGE(E37:L37)","v":{"$error":"#DIV/0!"}}]
[28,{"$nulls":11},{"$f":"AVERAGE(E38:L38)","v":{"$error":"#DIV/0!"}}]
[29,{"$nulls":11},{"$f":"AVERAGE(E39:L39)","v":{"$error":"#DIV/0!"}}]
[30,{"$nulls":11},{"$f":"AVERAGE(E40:L40)","v":{"$error":"#DIV/0!"}}]
[null,"СРЕДНИЙ ПОКАЗАТЕЛЬ ПО ГРУППЕ",{"$nulls":10},{"$f":"AVERAGE(M11:M40)","v":{"$error":"#DIV/0!"}}]
[null,"Ф.И.О, должность специалиста(ов)____________________________________________________________________________________________________________________________________________________________________________________________________________________________________"]
[null,"© Автор-составитель Кулекина И.А., СПБ, 2023"]

{"sheet":"Физ.разв. к 7г ч2","index":9,"n_rows":45,"n_cols":21,"rows_kept":45,"merged":[[0,0,0,1],[0,4,0,8],[0,9,0,13],[1,0,1,3],[1,6,1,10],[2,0,2,3],[3,0,3,1],[3,4,3,7],[3,8,3,10],[3,11,3,12],[4,0,4,1],[4,4,4,7],[4,8,4,10],[4,11,4,12],[5,0,11,0],[5,1,11,1],[5,4,5,19],[5,20,11,20],[6,4,6,19],[7,4,7,10],[7,11,7,12],[7,13,7,15],[7,16,7,19],[8,4,8,6],[8,7,8,10],[8,11,11,11],[8,12,11,12],[8,13,11,13],[8,14,11,14],[8,15,11,15],[8,16,8,19],[9,4,11,4],[9,5,11,5],[9,6,11,6],[9,7,11,7],[9,8,11,8],[9,9,11,9],[9,10,11,10],[9,16,11,16],[9,17,11,17],[9,18,11,18],[9,19,11,19],[42,1,42,19],[43,1,43,20],[44,1,44,20]]}
["Финальная диагностика",{"$nulls":3},"ГРУППА ПОДГОТОВИТЕЛЬНОГО К ШКОЛЕ ВОЗРАСТА (6-7 лет)",{"$nulls":4},"Период проведения - окончание посещения группы подготовительного к школе возраста"]
["Стартовая диагностика"]
["*- не диагностируется в данном возрасте"]
["Сформированность показателя",{"$nulls":3},"«2» показатель сформирован",{"$nulls":3},"«1» показатель в стадии формирования",null,null,"«0» показатель не сформирован"]
["Средний уровень",{"$nulls":3},"1,8 - 2,0 норма-высокий",{"$nulls":3},"1,0 - 1,7 норма - средний",null,null,"0,0 - 0,9 ниже нормы"]
["№","Ф.И. ребенка",null,null,"ОБРАЗОВАТЕЛЬНАЯ ОБЛАСТЬ «ФИЗИЧЕСКОЕ  РАЗВИТИЕ»",{"$nulls":15},"СРЕДНИЙ ПОКАЗАТЕЛЬ ПО РЕБЕНКУ"]
[{"$nulls":4},"Показатели возможных достижений (возрастные характеристики) к 7 годам"]
[{"$nulls":4},"Мелкая моторика",{"$nulls":6},"Подвижные игры",null,"Спорт. игры",null,null,"Спортивные упражнения"]
[{"$nulls":4},"Координация рук и глаз",null,null,"Графические навыки",{"$nulls":3},"Ребенок использует в самостоятельной деятельности разнообразные по содержанию подвижные игры, проявляет элементы творчества в двигательной деятельности","Ребенок может организовать знакомые подвижные игры со сверстниками, сплотить команду, стремится внести свой вклад в результат команды","Ребенок владеет элементами спортивных игр (городки, баскетбол, футбол, хоккей, бадминтон, настольный теннис), может контролировать свои движения и управлять ими","Ребенок имеет представление о разных видах спорта (санный спорт, борьба, теннис, синхронное плавание и др.)","Ребенок имеет представление о спортивных событиях и достижениях отечественных спортсменов","Ребенок умеет кататься"]
[{"$nulls":4},"Ребенок выполняет графический диктант","Ребенок обводит по шаблону, по трафарету","Ребенок чертит линии с помощью линейки","Ребенок обводит по контуру, по точкам","Ребенок выполняет штриховку в различных направлениях","Ребенок закрашивает, не выходя за контур","Ребенок свободно владеет карандашом при рисовании округлых линий, завитков в разном направлении",{"$nulls":5},"на санках","на лыжах","на двухколесном велосипеде","на самокате"]
[]
[]
[1,{"$nulls":19},{"$f":"AVERAGE(E13:T13)","v":{"$error":"#DIV/0!"}}]
[2,{"$nulls":19},{"$error":"#DIV/0!"}]
[3,{"$nulls":19},{"$error":"#DIV/0!"}]
[4,{"$nulls":19},{"$error":"#DIV/0!"}]
[5,{"$nulls":19},{"$error":"#DIV/0!"}]
[6,{"$nulls":19},{"$error":"#DIV/0!"}]
[7,{"$nulls":19},{"$error":"#DIV/0!"}]
[8,{"$nulls":19},{"$error":"#DIV/0!"}]
[9,{"$nulls":19},{"$error":"#DIV/0!"}]
[10,{"$nulls":19},{"$error":"#DIV/0!"}]
[11,{"$nulls":19},{"$error":"#DIV/0!"}]
[12,{"$nulls":19},{"$error":"#DIV/0!"}]
[13,{"$nulls":19},{"$error":"#DIV/0!"}]
[14,{"$nulls":19},{"$error":"#DIV/0!"}]
[15,{"$nulls":19},{"$error":"#DIV/0!"}]
[16,{"$nulls":19},{"$error":"#DIV/0!"}]
[17,{"$nulls":19},{"$error":"#DIV/0!"}]
[18,{"$nulls":19},{"$error":"#DIV/0!"}]
[19,{"$nulls":19},{"$error":"#DIV/0!"}]
[20,{"$nulls":19},{"$error":"#DIV/0!"}]
[21,{"$nulls":19},{"$error":"#DIV/0!"}]
[22,{"$nulls":19},{"$error":"#DIV/0!"}]
[23,{"$nulls":19},{"$error":"#DIV/0!"}]
[24,{"$nulls":19},{"$error":"#DIV/0!"}]
[25,{"$nulls":19},{"$error":"#DIV/0!"}]
[26,{"$nulls":19},{"$error":"#DIV/0!"}]
[27,{"$nulls":19},{"$error":"#DIV/0!"}]
[28,{"$nulls":19},{"$error":"#DIV/0!"}]
[29,{"$nulls":19},{"$error":"#DIV/0!"}]
[30,{"$nulls":19},{"$error":"#DIV/0!"}]
[null,"СРЕДНИЙ ПОКАЗАТЕЛЬ ПО ГРУППЕ",{"$nulls":18},{"$f":"AVERAGE(U13:U42)","v":{"$error":"#DIV/0!"}}]
[null,"Ф.И.О, должность специалиста(ов)____________________________________________________________________________________________________________________________________________________________________________________________________________________________________"]
[null,"© Автор-составитель Кулекина И.А., СПБ, 2023"]

{"sheet":"Физ.разв. к 7г ч1","index":10,"n_rows":44,"n_cols":24,"rows_kept":44,"merged":[[0,0,0,1],[0,4,0,8],[0,9,0,14],[1,0,1,3],[2,0,2,3],[3,0,3,1],[3,4,3,7],[3,8,3,9],[3,11,3,13],[4,0,4,1],[4,4,4,7],[4,8,4,9],[4,11,4,13],[5,0,10,0],[5,1,10,1],[5,4,5,22],[5,23,10,23],[6,4,6,22],[7,4,7,22],[8,4,8,5],[8,6,8,8],[8,9,8,11],[8,12,8,14],[8,15,8,18],[8,19,8,20],[8,21,8,22],[9,4,9,5],[9,6,9,8],[9,9,9,11],[9,12,9,14],[9,15,9,18],[9,19,9,20],[9,21,10,21],[9,22,10,22],[41,1,41,22],[42,1,42,23],[43,1,43,23]]}
["Финальная диагностика",{"$nulls":3},"ГРУППА ПОДГОТОВИТЕЛЬНОГО К ШКОЛЕ ВОЗРАСТА (6-7 лет)",{"$nulls":4},"Период проведения - окончание посещения группы подготовительного к школе возраста"]
["Стартовая диагностика"]
["*- не диагностируется в данном возрасте"]
["Сформированность показателя",{"$nulls":3},"«2» показатель сформирован",{"$nulls":3},"«1» показатель в стадии формирования",null,null,"«0» показатель не сформирован"]
["Средний уровень",{"$nulls":3},"1,8 - 2,0 норма-высокий",{"$nulls":3},"1,0 - 1,7 норма - средний",null,null,"0,0 - 0,9 ниже нормы"]
["№","Ф.И. ребенка",null,null,"ОБРАЗОВАТЕЛЬНАЯ ОБЛАСТЬ «ФИЗИЧЕСКОЕ РАЗВИТИЕ»",{"$nulls":18},"СРЕДНИЙ ПОКАЗАТЕЛЬ ПО РЕБЕНКУ"]
[{"$nulls":4},"Показатели возможных достижений (возрастные характеристики) к 7 годам"]
[{"$nulls":4},"Крупная моторика. ОВД, ОРУ"]
[{"$nulls":4},"Бросание, катание, ловля, метание",null,"Ползанье, лазанье",null,null,"Ходьба",null,null,"Бег",null,null,"Прыжки",{"$nulls":3},"Равновесие",null,"Строевые упражнения"]
[{"$nulls":4},"Ребенок выполняет различные упражнения с мячом, метание",null,"Ребенок выполняет разные виды ползанья, лазанья ",null,null,"Ребенок выполняет различные виды ходьбы",null,null,"Ребенок выполняет различные виды бега",null,null,"Ребенок выполняет различные виды прыжков",{"$nulls":3},"Ребенок выполняет",null,"Ребенок выполняет разные виды перестроений, построений, передвижений, размыкание и смыкание приставным шагом, повороты","Ребенок может рассчитаться на «первый – второй»"]
[{"$nulls":4},"бросание вверх, о землю, ловля двумя руками, одной рукой, перебрасывание, передача, прокатывание, забрасывание, ведение","в цель из положения стоя, вдаль, в движущеюся цель","ползанье на четвереньках, на животе, на спине","влезание на гимнастическую стенку и спуск; перелезание с пролета на пролет по диагонали","лазанье по веревочной лестнице; выполнение упражнений на канате","обычная, гимнастическим шагом, скрестным шагом, спиной вперед, выпадами, с закрытыми глазами","приставными шагами назад, в приседе, с различными движениями рук","в различных построениях","в колонне по одному, врассыпную, парами, тройками, четверками","в сочетание с прыжками, высоко поднимая колени, захлестывая голени назад, выбрасывая прямые ноги вперед","челночный, наперегонки, из разных исходных положений, со скакалкой, по пересеченной местности, с наименьшим числом шагов, медленный, быстрый","подпрыгивания на двух ногах в чередовании с ходьбой, на месте и с поворот кругом","смещая ноги вправо-влево-вперед-назад","выпрыгивание на предметы; подпрыгивания вверх из глубокого приседа; прыжки на одной ноге","в длину с места/с разбега, в высоту с места/с разбега","стойка на носках, стойка на одной ноге с закрытыми глазами","кружение с закрытыми глазами, остановкой и сохранением заданной позы"]
[1,{"$nulls":22},{"$f":"AVERAGE(H12:W12)","v":{"$error":"#DIV/0!"}}]
[2,{"$nulls":22},{"$error":"#DIV/0!"}]
[3,{"$nulls":22},{"$error":"#DIV/0!"}]
[4,{"$nulls":22},{"$error":"#DIV/0!"}]
[5,{"$nulls":22},{"$error":"#DIV/0!"}]
[6,{"$nulls":22},{"$error":"#DIV/0!"}]
[7,{"$nulls":22},{"$error":"#DIV/0!"}]
[8,{"$nulls":22},{"$error":"#DIV/0!"}]
[9,{"$nulls":22},{"$error":"#DIV/0!"}]
[10,{"$nulls":22},{"$error":"#DIV/0!"}]
[11,{"$nulls":22},{"$error":"#DIV/0!"}]
[12,{"$nulls":22},{"$error":"#DIV/0!"}]
[13,{"$nulls":22},{"$error":"#DIV/0!"}]
[14,{"$nulls":22},{"$error":"#DIV/0!"}]
[15,{"$nulls":22},{"$error":"#DIV/0!"}]
[16,{"$nulls":22},{"$error":"#DIV/0!"}]
[17,{"$nulls":22},{"$error":"#DIV/0!"}]
[18,{"$nulls":22},{"$error":"#DIV/0!"}]
[19,{"$nulls":22},{"$error":"#DIV/0!"}]
[20,{"$nulls":22},{"$error":"#DIV/0!"}]
[21,{"$nulls":22},{"$error":"#DIV/0!"}]
[22,{"$nulls":22},{"$error":"#DIV/0!"}]
[23,{"$nulls":22},{"$error":"#DIV/0!"}]
[24,{"$nulls":22},{"$error":"#DIV/0!"}]
[25,{"$nulls":22},{"$error":"#DIV/0!"}]
[26,{"$nulls":22},{"$error":"#DIV/0!"}]
[27,{"$nulls":22},{"$error":"#DIV/0!"}]
[28,{"$nulls":22},{"$error":"#DIV/0!"}]
[29,{"$nulls":22},{"$error":"#DIV/0!"}]
[30,{"$nulls":22},{"$error":"#DIV/0!"}]
[null,"СРЕДНИЙ ПОКАЗАТЕЛЬ ПО ГРУППЕ",{"$nulls":21},{"$f":"AVERAGE(X12:X41)","v":{"$error":"#DIV/0!"}}]
[null,"Ф.И.О, должность специалиста(ов)____________________________________________________________________________________________________________________________________________________________________________________________________________________________________"]
[null,"© Автор-составитель Кулекина И.А., СПБ, 2023"]

{"sheet":"Соц.ком.к 7г ч1","index":11,"n_rows":43,"n_cols":15,"rows_kept":43,"merged":[[0,0,0,1],[0,4,0,7],[0,8,0,12],[1,0,1,3],[1,4,1,9],[1,10,1,13],[2,0,2,3],[3,0,3,1],[3,4,3,5],[3,6,3,8],[3,9,3,10],[4,0,4,1],[4,4,4,5],[4,6,4,8],[4,9,4,10],[5,0,9,0],[5,1,9,1],[5,4,5,13],[5,14,9,14],[6,4,6,13],[7,4,7,13],[8,4,8,7],[8,10,8,12],[40,1,40,13],[41,1,41,14],[42,1,42,14]]}
["Финальная диагностика",{"$nulls":3},"ГРУППА ПОДГОТОВИТЕЛЬНОГО К ШКОЛЕ ВОЗРАСТА (6-7 лет)",{"$nulls":3},"Период проведения - окончание посещения группы подготовительного к школе возраста"]
["Стартовая диагностика"]
["*- не диагностируется в данном возрасте"]
["Сформированность показателя",{"$nulls":3},"«2» показатель сформирован",null,"«1» показатель в стадии формирования",null,null,"«0» показатель не сформирован"]
["Средний уровень",{"$nulls":3},"1,8 - 2,0 норма-высокий",null,"1,0 - 1,7 норма - средний",null,null,"0,0 - 0,9 ниже нормы"]
["№","Ф.И. ребенка",null,null,"ОБРАЗОВАТЕЛЬНАЯ ОБЛАСТЬ «СОЦИАЛЬНО-КОММУНИКАТИВНОЕ  РАЗВИТИЕ»",{"$nulls":9},"СРЕДНИЙ ПОКАЗАТЕЛЬ ПО РЕБЕНКУ"]
[{"$nulls":4},"Показатели возможных достижений (возрастные характеристики) к 7 годам"]
[{"$nulls":4},"Сфера социальных отношений"]
[{"$nulls":4},"Отношение к самому себе",{"$nulls":3},"Отношение к сверстникам","Отношение к взрослым","Эмоции",null,null,"Поведение"]
[{"$nulls":4},"Ребенок осознает и признает собственные ошибки, результат поставленных задач, определяет пути развития","Ребенок умеет договариваться и дружить, старается разрешать конфликтные ситуации конструктивными способами","Ребенок способен принимать собственные решения и проявлять инициативу","Ребенок осознанно относится к своему будущему, стремится быть полезным обществу","Ребенок без напоминаний использует в общении формулы словесной вежливости (приветствие, прощание, просьбы, извинения)","Ребенок без напоминаний использует в общении формулы словесной вежливости (приветствие, прощание, просьбы, извинения)","Ребенок понимает чувства и переживания окружающих по невербальным признакам; находит причины и следствия возникновения эмоций, проявляет эмпатию","Ребенок использует социально приемлемые способы проявления эмоций и доступные возрасту регуляции эмоциональных состояний","Ребенок распознает собственные чувства и эмоции, анализирует свои переживания и рассказывает о них","Ребенок самостоятельно соблюдает установленный порядок поведения в группе, регулирует собственную активность"]
[1,{"$nulls":13},{"$f":"AVERAGE(I11:N11)","v":{"$error":"#DIV/0!"}}]
[2,{"$nulls":13},{"$error":"#DIV/0!"}]
[3,{"$nulls":13},{"$error":"#DIV/0!"}]
[4,{"$nulls":13},{"$error":"#DIV/0!"}]
[5,{"$nulls":13},{"$error":"#DIV/0!"}]
[6,{"$nulls":13},{"$error":"#DIV/0!"}]
[7,{"$nulls":13},{"$error":"#DIV/0!"}]
[8,{"$nulls":13},{"$error":"#DIV/0!"}]
[9,{"$nulls":13},{"$error":"#DIV/0!"}]
[10,{"$nulls":13},{"$error":"#DIV/0!"}]
[11,{"$nulls":13},{"$error":"#DIV/0!"}]
[12,{"$nulls":13},{"$error":"#DIV/0!"}]
[13,{"$nulls":13},{"$error":"#DIV/0!"}]
[14,{"$nulls":13},{"$error":"#DIV/0!"}]
[15,{"$nulls":13},{"$error":"#DIV/0!"}]
[16,{"$nulls":13},{"$error":"#DIV/0!"}]
[17,{"$nulls":13},{"$error":"#DIV/0!"}]
[18,{"$nulls":13},{"$error":"#DIV/0!"}]
[19,{"$nulls":13},{"$error":"#DIV/0!"}]
[20,{"$nulls":13},{"$error":"#DIV/0!"}]
[21,{"$nulls":13},{"$error":"#DIV/0!"}]
[22,{"$nulls":13},{"$error":"#DIV/0!"}]
[23,{"$nulls":13},{"$error":"#DIV/0!"}]
[24,{"$nulls":13},{"$error":"#DIV/0!"}]
[25,{"$nulls":13},{"$error":"#DIV/0!"}]
[26,{"$nulls":13},{"$error":"#DIV/0!"}]
[27,{"$nulls":13},{"$error":"#DIV/0!"}]
[28,{"$nulls":13},{"$error":"#DIV/0!"}]
[29,{"$nulls":13},{"$error":"#DIV/0!"}]
[30,{"$nulls":13},{"$error":"#DIV/0!"}]
[null,"СРЕДНИЙ ПОКАЗАТЕЛЬ ПО ГРУППЕ",{"$nulls":12},{"$f":"AVERAGE(O11:O40)","v":{"$error":"#DIV/0!"}}]
[null,"Ф.И.О, должность специалиста(ов)____________________________________________________________________________________________________________________________________________________________________________________________________________________________________"]
[null,"© Автор-составитель Кулекина И.А., СПБ, 2023"]

{"sheet":"Позн.разв. к 7г ч1","index":12,"n_rows":44,"n_cols":14,"rows_kept":44,"merged":[[0,1,0,2],[0,5,0,6],[0,7,0,10],[1,1,1,4],[2,1,2,4],[3,1,3,2],[3,6,3,7],[3,8,3,9],[4,1,4,2],[4,6,4,7],[4,8,4,9],[5,0,10,0],[5,1,10,1],[5,4,5,12],[5,13,10,13],[6,4,6,12],[7,4,7,8],[7,9,7,12],[8,5,8,7],[8,9,10,9],[8,10,10,10],[8,11,10,11],[8,12,10,12],[9,4,9,8],[41,1,41,12],[43,1,43,13]]}
[null,"Финальная диагностика",{"$nulls":3},"ГРУППА ПОДГОТОВИТЕЛЬНОГО К ШКОЛЕ ВОЗРАСТА (6-7 лет)",null,"Период проведения - окончание посещения группы подготовительного к школе возраста"]
[null,"Стартовая диагностика"]
[null,"*- не диагностируется в данном возрасте"]
[null,"Сформированность показателя",{"$nulls":3},"«2» показатель сформирован","«1» показатель в стадии формирования",null,"«0» показатель не сформирован"]
[null,"Средний уровень",{"$nulls":3},"1,8 - 2,0 норма-высокий","1,0 - 1,7 норма - средний",null,"0,0 - 0,9 ниже нормы"]
["№","Ф.И. ребенка",null,null,"ОБРАЗОВАТЕЛЬНАЯ ОБЛАСТЬ «ПОЗНАВАТЕЛЬНОЕ  РАЗВИТИЕ»",{"$nulls":8},"СРЕДНИЙ ПОКАЗАТЕЛЬ ПО РЕБЕНКУ"]
[{"$nulls":4},"Показатели возможных достижений (возрастные характеристики) к 7 годам"]
[{"$nulls":4},"Сенсорные эталоны ",{"$nulls":4},"Познавательные действия"]
[{"$nulls":4},"Цвет, оттенки","Форма, геометрические фигуры",null,null,"Величина","Ребенок самостоятельно выбирает способ осуществления разных видов познавательной деятельности","Ребенок интересуется субъективно новым и неизвестным в окружающем мире","Ребенок способен применять в жизненных и игровых ситуациях знания о количестве, форме, величине предметов, пространстве, времени","Ребенок имеет разнообразные познавательные умения: определяет противоречия. Формулирует задачу исследования, использует разные способы и средства проверки предположений (сравнение с эталонами, классификацию, систематизацию и др.)"]
[{"$nulls":4},"Ребенок различает и называет"]
[{"$nulls":4}," все цвета спектра и ахроматические цвета, оттенки","плоские и объемные геометрические фигуры; умеет выделять структуру геометрических фигур и устанавливать взаимосвязи между ними","Ребенок умеет классифицировать фигуры по внешним структурным признаками (округлые, многоугольники)","Ребенок владеет различными способами видоизменения геометрических фигур (наложение, соединение, разрезание и др.)","Ребенок умеет измерять длину, ширину, высоту с помощью условной мерки"]
[1,{"$nulls":12},{"$f":"AVERAGE(E12:M12)","v":{"$error":"#DIV/0!"}}]
[2,{"$nulls":12},{"$error":"#DIV/0!"}]
[3,{"$nulls":12},{"$error":"#DIV/0!"}]
[4,{"$nulls":12},{"$error":"#DIV/0!"}]
[5,{"$nulls":12},{"$error":"#DIV/0!"}]
[6,{"$nulls":12},{"$error":"#DIV/0!"}]
[7,{"$nulls":12},{"$error":"#DIV/0!"}]
[8,{"$nulls":12},{"$error":"#DIV/0!"}]
[9,{"$nulls":12},{"$error":"#DIV/0!"}]
[10,{"$nulls":12},{"$error":"#DIV/0!"}]
[11,{"$nulls":12},{"$error":"#DIV/0!"}]
[12,{"$nulls":12},{"$error":"#DIV/0!"}]
[13,{"$nulls":12},{"$error":"#DIV/0!"}]
[14,{"$nulls":12},{"$error":"#DIV/0!"}]
[15,{"$nulls":12},{"$error":"#DIV/0!"}]
[16,{"$nulls":12},{"$error":"#DIV/0!"}]
[17,{"$nulls":12},{"$error":"#DIV/0!"}]
[18,{"$nulls":12},{"$error":"#DIV/0!"}]
[19,{"$nulls":12},{"$error":"#DIV/0!"}]
[20,{"$nulls":12},{"$error":"#DIV/0!"}]
[21,{"$nulls":12},{"$error":"#DIV/0!"}]
[22,{"$nulls":12},{"$error":"#DIV/0!"}]
[23,{"$nulls":12},{"$error":"#DIV/0!"}]
[24,{"$nulls":12},{"$error":"#DIV/0!"}]
[25,{"$nulls":12},{"$error":"#DIV/0!"}]
[26,{"$nulls":12},{"$error":"#DIV/0!"}]
[27,{"$nulls":12},{"$error":"#DIV/0!"}]
[28,{"$nulls":12},{"$error":"#DIV/0!"}]
[29,{"$nulls":12},{"$error":"#DIV/0!"}]
[30,{"$nulls":12},{"$error":"#DIV/0!"}]
[null,"СРЕДНИЙ ПОКАЗАТЕЛЬ ПО ГРУППЕ",{"$nulls":11},{"$f":"AVERAGE(N12:N41)","v":{"$error":"#DIV/0!"}}]
[null,"Ф.И.О, должность специалиста(ов)____________________________________________________________________________________________________________________________________________________________________________________________________________________________________"]
[null,"© Автор-составитель Кулекина И.А., СПБ, 2023"]

{"sheet":"Позн.разв. к 7г ч3","index":13,"n_rows":44,"n_cols":18,"rows_kept":44,"merged":[[0,0,0,1],[0,4,0,5],[0,6,0,9],[1,0,1,3],[2,0,2,3],[3,0,3,1],[3,5,3,6],[3,7,3,8],[4,0,4,1],[4,5,4,6],[4,7,4,8],[5,0,10,0],[5,1,10,1],[5,4,5,16],[5,17,10,17],[6,4,6,16],[7,4,7,8],[7,9,7,16],[8,4,9,8],[8,9,8,12],[8,13,8,14],[8,15,10,15],[8,16,10,16],[9,13,10,13],[41,1,41,16],[43,1,43,17]]}
["Финальная диагностика",{"$nulls":3},"ГРУППА ПОДГОТОВИТЕЛЬНОГО К ШКОЛЕ ВОЗРАСТА (6-7 лет)",null,"Период проведения - окончание посещения группы подготовительного к школе возраста"]
["Стартовая диагностика"]
["*- не диагностируется в данном возрасте"]
["Сформированность показателя",{"$nulls":3},"«2» показатель сформирован","«1» показатель в стадии формирования",null,"«0» показатель не сформирован"]
["Средний уровень",{"$nulls":3},"1,8 - 2,0 норма-высокий","1,0 - 1,7 норма - средний",null,"0,0 - 0,9 ниже нормы"]
["№","Ф.И. ребенка",null,null,"ОБРАЗОВАТЕЛЬНАЯ ОБЛАСТЬ «ПОЗНАВАТЕЛЬНОЕ  РАЗВИТИЕ»",{"$nulls":12},"СРЕДНИЙ ПОКАЗАТЕЛЬ ПО РЕБЕНКУ"]
[{"$nulls":4},"Показатели возможных достижений (возрастные характеристики) к 7 годам"]
[{"$nulls":4},"Окружающий мир",{"$nulls":4},"Природа "]
[{"$nulls":4},"Ребенок имеет представления, может показать на картинке и в естественной среде, может рассказать",{"$nulls":4},"Объекты живой природы",{"$nulls":3},"Объекты неживой природы, природные явления",null,"Ребенок стремится к самостоятельному экспериментированию","Ребенок знает правила поведения в природе, проявляет осознанное, бережное отношение к природе и ее ресурсам"]
[{"$nulls":13},"Ребенок имеет представление об использовании человеком свойств неживой природы для хозяйственных нужд (ветряные мельницы, водохранилища, солнечные батареи, ледяные катки)"]
[{"$nulls":4}," о родном населенном пункте (название улиц, некоторых архитектурных особенностях, достопримечательностях), об истории, о выдающихся горожанах, традициях городской жизни"," о назначении общественных учреждений"," о разных видах специального транспорта"," о местах труда людей (завод, больница, магазин и др.)"," о местах отдыха людей","Ребенок имеет представление о наиболее ярких представителях животных и растений разных природных зон (пустыня, степь, тайга, тундра и др.), об их образе жизни, приспособлении к среде обитания, изменениях в жизни в разные сезоны года","Ребенок имеет представление о многообразии водных ресурсов (моря, океаны, реки, водопады и др.)","Ребенок имеет представление о многообразии полезных ископаемых (нефть, уголь, серебро, золото, алмазы и др.)","Ребенок имеет представление о жизненных потребностях, этапах роста и развития животных и растений",null,"Ребенок имеет представление о некоторых небесных телах (планеты, кометы, звезды)"]
[1,{"$nulls":16},{"$f":"AVERAGE(E12:Q12)","v":{"$error":"#DIV/0!"}}]
[2,{"$nulls":16},{"$error":"#DIV/0!"}]
[3,{"$nulls":16},{"$error":"#DIV/0!"}]
[4,{"$nulls":16},{"$error":"#DIV/0!"}]
[5,{"$nulls":16},{"$error":"#DIV/0!"}]
[6,{"$nulls":16},{"$error":"#DIV/0!"}]
[7,{"$nulls":16},{"$error":"#DIV/0!"}]
[8,{"$nulls":16},{"$error":"#DIV/0!"}]
[9,{"$nulls":16},{"$error":"#DIV/0!"}]
[10,{"$nulls":16},{"$error":"#DIV/0!"}]
[11,{"$nulls":16},{"$error":"#DIV/0!"}]
[12,{"$nulls":16},{"$error":"#DIV/0!"}]
[13,{"$nulls":16},{"$error":"#DIV/0!"}]
[14,{"$nulls":16},{"$error":"#DIV/0!"}]
[15,{"$nulls":16},{"$error":"#DIV/0!"}]
[16,{"$nulls":16},{"$error":"#DIV/0!"}]
[17,{"$nulls":16},{"$error":"#DIV/0!"}]
[18,{"$nulls":16},{"$error":"#DIV/0!"}]
[19,{"$nulls":16},{"$error":"#DIV/0!"}]
[20,{"$nulls":16},{"$error":"#DIV/0!"}]
[21,{"$nulls":16},{"$error":"#DIV/0!"}]
[22,{"$nulls":16},{"$error":"#DIV/0!"}]
[23,{"$nulls":16},{"$error":"#DIV/0!"}]
[24,{"$nulls":16},{"$error":"#DIV/0!"}]
[25,{"$nulls":16},{"$error":"#DIV/0!"}]
[26,{"$nulls":16},{"$error":"#DIV/0!"}]
[27,{"$nulls":16},{"$error":"#DIV/0!"}]
[28,{"$nulls":16},{"$error":"#DIV/0!"}]
[29,{"$nulls":16},{"$error":"#DIV/0!"}]
[30,{"$nulls":16},{"$error":"#DIV/0!"}]
[null,"СРЕДНИЙ ПОКАЗАТЕЛЬ ПО ГРУППЕ",{"$nulls":15},{"$f":"AVERAGE(R12:R41)","v":{"$error":"#DIV/0!"}}]
[null,"Ф.И.О, должность специалиста(ов)____________________________________________________________________________________________________________________________________________________________________________________________________________________________________"]
[null,"© Автор-составитель Кулекина И.А., СПБ, 2023"]

{"sheet":"Худ.эст.к 7г ч1","index":14,"n_rows":44,"n_cols":18,"rows_kept":44,"merged":[[0,0,0,1],[0,4,0,6],[0,7,0,10],[1,0,1,3],[2,0,2,3],[3,0,3,1],[3,5,3,6],[3,7,3,8],[4,0,4,1],[4,5,4,6],[4,7,4,8],[5,0,10,0],[5,1,10,1],[5,4,5,16],[5,17,10,17],[6,4,6,16],[7,4,7,16],[8,8,8,9],[8,10,8,13],[8,14,8,15],[8,16,10,16],[9,4,10,4],[9,5,10,5],[9,6,10,6],[9,7,10,7],[9,8,10,8],[9,9,10,9],[9,10,10,10],[9,11,10,11],[9,12,10,12],[9,13,10,13],[9,14,10,14],[9,15,10,15],[41,1,41,16],[43,1,43,17]]}
["Финальная диагностика",{"$nulls":3},"ГРУППА ПОДГОТОВИТЕЛЬНОГО К ШКОЛЕ ВОЗРАСТА (6-7 лет)",null,null,"Период проведения - окончание посещения группы подготовительного к школе возраста"]
["Стартовая диагностика"]
["*- не диагностируется в данном возрасте"]
["Сформированность показателя",{"$nulls":3},"«2» показатель сформирован","«1» показатель в стадии формирования",null,"«0» показатель не сформирован"]
["Средний уровень",{"$nulls":3},"1,8 - 2,0 норма-высокий","1,0 - 1,7 норма - средний",null,"0,0 - 0,9 ниже нормы"]
["№","Ф.И. ребенка",null,null,"ОБРАЗОВАТЕЛЬНАЯ ОБЛАСТЬ «ХУДОЖЕСТВЕННО-ЭСТЕТИЧЕСКОЕ РАЗВИТИЕ»",{"$nulls":12},"СРЕДНИЙ ПОКАЗАТЕЛЬ ПО РЕБЕНКУ"]
[{"$nulls":4},"Показатели возможных достижений (возрастные характеристики) к 7 годам"]
[{"$nulls":4},"Музыкальная деятельность"]
[{"$nulls":4},"Слушание","Пение ","Музыкально-ритмические движения","Песенное творчество","Игра на детских музыкальных инструментах",null,"Театрализованная деятельность",{"$nulls":3},"Танцевально-игровое творчество",null,"У ребенка развит музыкальный вкус, музыкальная память"]
[{"$nulls":4},"У ребенка развит навык восприятия звуков по высоте в пределах квинты-терции","У ребенка развиты певческий голос и вокально-слуховая координация","Ребёнок ритмично и выразительно двигается в соответствие с характером музыки","Ребенок способен самостоятельно придумать мелодию, используя в качестве образца русские народные песни","Ребенок может сыграть простую мелодию на металлофоне, свирели, ударных, и электронных музыкальных инструментах: трещотках, погремушках, треугольниках","Ребенок может исполнить музыкальное произведение в оркестре и в ансамбле","Ребенок проявляет самостоятельность при выборе литературного и музыкального материала для театральной постановки","Ребенок проявляет инициативу при изготовлении атрибутов и декораций к спектаклю","Ребенок имеет представление о средствах погружения в театральные образы (музыка, слова, декорации, грим, костюм и др.)","Ребенок умеет выразительно передавать образы в действии, мимике, пантомимике","Ребенок проявляет активность в доступных видах музыкальной исполнительской деятельности (игра в оркестре, пение, танцевальные движения и др.)","Ребенок помогает придумывать движения, отражающие содержание песни"]
[]
[1,{"$nulls":16},{"$f":"AVERAGE(F12:Q12)","v":{"$error":"#DIV/0!"}}]
[2,{"$nulls":16},{"$error":"#DIV/0!"}]
[3,{"$nulls":16},{"$error":"#DIV/0!"}]
[4,{"$nulls":16},{"$error":"#DIV/0!"}]
[5,{"$nulls":16},{"$error":"#DIV/0!"}]
[6,{"$nulls":16},{"$error":"#DIV/0!"}]
[7,{"$nulls":16},{"$error":"#DIV/0!"}]
[8,{"$nulls":16},{"$error":"#DIV/0!"}]
[9,{"$nulls":16},{"$error":"#DIV/0!"}]
[10,{"$nulls":16},{"$error":"#DIV/0!"}]
[11,{"$nulls":16},{"$error":"#DIV/0!"}]
[12,{"$nulls":16},{"$error":"#DIV/0!"}]
[13,{"$nulls":16},{"$error":"#DIV/0!"}]
[14,{"$nulls":16},{"$error":"#DIV/0!"}]
[15,{"$nulls":16},{"$error":"#DIV/0!"}]
[16,{"$nulls":16},{"$error":"#DIV/0!"}]
[17,{"$nulls":16},{"$error":"#DIV/0!"}]
[18,{"$nulls":16},{"$error":"#DIV/0!"}]
[19,{"$nulls":16},{"$error":"#DIV/0!"}]
[20,{"$nulls":16},{"$error":"#DIV/0!"}]
[21,{"$nulls":16},{"$error":"#DIV/0!"}]
[22,{"$nulls":16},{"$error":"#DIV/0!"}]
[23,{"$nulls":16},{"$error":"#DIV/0!"}]
[24,{"$nulls":16},{"$error":"#DIV/0!"}]
[25,{"$nulls":16},{"$error":"#DIV/0!"}]
[26,{"$nulls":16},{"$error":"#DIV/0!"}]
[27,{"$nulls":16},{"$error":"#DIV/0!"}]
[28,{"$nulls":16},{"$error":"#DIV/0!"}]
[29,{"$nulls":16},{"$error":"#DIV/0!"}]
[30,{"$nulls":16},{"$error":"#DIV/0!"}]
[null,"СРЕДНИЙ ПОКАЗАТЕЛЬ ПО ГРУППЕ",{"$nulls":15},{"$f":"AVERAGE(R12:R41)","v":{"$error":"#DIV/0!"}}]
[null,"Ф.И.О, должность специалиста(ов)____________________________________________________________________________________________________________________________________________________________________________________________________________________________________"]
[null,"© Автор-составитель Кулекина И.А., СПБ, 2023"]

{"sheet":"Худ.эст.к 7г ч2","index":15,"n_rows":44,"n_cols":18,"rows_kept":44,"merged":[[0,0,0,1],[0,4,0,6],[0,7,0,9],[1,0,1,3],[2,0,2,3],[3,0,3,1],[3,5,3,6],[3,7,3,8],[4,0,4,1],[4,5,4,6],[4,7,4,8],[5,0,10,0],[5,1,10,1],[5,4,5,16],[5,17,10,17],[6,4,6,16],[7,4,7,16],[8,4,8,5],[8,6,8,7],[8,8,8,9],[8,11,8,16],[9,4,10,4],[9,5,10,5],[9,6,10,6],[9,7,10,7],[9,8,10,8],[9,9,10,9],[9,10,10,10],[9,11,10,11],[9,12,10,12],[9,13,10,13],[9,14,10,14],[9,15,10,15],[9,16,10,16],[41,1,41,16],[43,1,43,17]]}
["Финальная диагностика",{"$nulls":3},"ГРУППА ПОДГОТОВИТЕЛЬНОГО К ШКОЛЕ ВОЗРАСТА (6-7 лет)",null,null,"Период проведения - окончание посещения группы подготовительного к школе возраста"]
["Стартовая диагностика"]
["*- не диагностируется в данном возрасте"]
["Сформированность показателя",{"$nulls":3},"«2» показатель сформирован","«1» показатель в стадии формирования",null,"«0» показатель не сформирован"]
["Средний уровень",{"$nulls":3},"1,8 - 2,0 норма-высокий","1,0 - 1,7 норма - средний",null,"0,0 - 0,9 ниже нормы"]
[null,"Ф.И. ребенка",null,null,"ОБРАЗОВАТЕЛЬНАЯ ОБЛАСТЬ «ХУДОЖЕСТВЕННО-ЭСТЕТИЧЕСКОЕ РАЗВИТИЕ»",{"$nulls":12},"СРЕДНИЙ ПОКАЗАТЕЛЬ ПО РЕБЕНКУ"]
[{"$nulls":4},"Показатели возможных достижений (возрастные характеристики) к 7 годам"]
[{"$nulls":4},"Изобразительная деятельность"]
[{"$nulls":4},"Рисование ",null,"Лепка ",null,"Аппликация ",null,"Народное ДПИ","Прикладное творчество"]
[{"$nulls":4},"Ребенок может изобразить предметы по памяти и с натуры, передает их средствами рисунка (форма, пропорции, расположение)","Ребенок способен передавать в рисунке сюжет, строить композицию","Ребенок свободно использует приемы лепки, освоенные ранее (налеп, углубленный рельеф), применяет стеку","Ребенок умеет передавать пропорции, соотношение по величине, выразительность поз, движений, деталей","Ребенок умеет составлять узоры и декоративные композиции из геометрических и растительных элементов на листах бумаги разной формы","Ребенок может выполнить вырезание (симметричное из бумаги, сложенной вдвое; несколько предметов из частей бумаги, сложенной гармошкой)","Ребенок умеет создавать узоры по мотивам народных росписей","Ребенок может сложить бумагу в разных направлениях","Ребенок может сделать разметку с помощью шаблона","Ребенок может выполнить работу по образцу","Ребенок может создать объемную игрушку в технике «оригами»","Ребенок может создать объемную поделку из природного материала","Ребенок может вдеть нитку в иголку, завязать узелок, пришить пуговицу, петельку, выполнить шов «вперед иголка»"]
[]
[1,{"$nulls":16},{"$f":"AVERAGE(F12:Q12)","v":{"$error":"#DIV/0!"}}]
[2,{"$nulls":16},{"$error":"#DIV/0!"}]
[3,{"$nulls":16},{"$error":"#DIV/0!"}]
[4,{"$nulls":16},{"$error":"#DIV/0!"}]
[5,{"$nulls":16},{"$error":"#DIV/0!"}]
[6,{"$nulls":16},{"$error":"#DIV/0!"}]
[7,{"$nulls":16},{"$error":"#DIV/0!"}]
[8,{"$nulls":16},{"$error":"#DIV/0!"}]
[9,{"$nulls":16},{"$error":"#DIV/0!"}]
[10,{"$nulls":16},{"$error":"#DIV/0!"}]
[11,{"$nulls":16},{"$error":"#DIV/0!"}]
[12,{"$nulls":16},{"$error":"#DIV/0!"}]
[13,{"$nulls":16},{"$error":"#DIV/0!"}]
[14,{"$nulls":16},{"$error":"#DIV/0!"}]
[15,{"$nulls":16},{"$error":"#DIV/0!"}]
[16,{"$nulls":16},{"$error":"#DIV/0!"}]
[17,{"$nulls":16},{"$error":"#DIV/0!"}]
[18,{"$nulls":16},{"$error":"#DIV/0!"}]
[19,{"$nulls":16},{"$error":"#DIV/0!"}]
[20,{"$nulls":16},{"$error":"#DIV/0!"}]
[21,{"$nulls":16},{"$error":"#DIV/0!"}]
[22,{"$nulls":16},{"$error":"#DIV/0!"}]
[23,{"$nulls":16},{"$error":"#DIV/0!"}]
[24,{"$nulls":16},{"$error":"#DIV/0!"}]
[25,{"$nulls":16},{"$error":"#DIV/0!"}]
[26,{"$nulls":16},{"$error":"#DIV/0!"}]
[27,{"$nulls":16},{"$error":"#DIV/0!"}]
[28,{"$nulls":16},{"$error":"#DIV/0!"}]
[29,{"$nulls":16},{"$error":"#DIV/0!"}]
[30,{"$nulls":16},{"$error":"#DIV/0!"}]
[null,"СРЕДНИЙ ПОКАЗАТЕЛЬ ПО ГРУППЕ",{"$nulls":15},{"$f":"AVERAGE(R12:R41)","v":{"$error":"#DIV/0!"}}]
[null,"Ф.И.О, должность специалиста(ов)____________________________________________________________________________________________________________________________________________________________________________________________________________________________________"]
[null,"© Автор-составитель Кулекина И.А., СПБ, 2023"]